[Event "KAZ Cup 2019"]
[Site "Almaty"]
[Date "2019.12.12"]
[Round "1.2"]
[White "Urazayev, Arystanbek"]
[Black "Babujian, Levon"]
[Result "0-1"]
[ECO "B43"]
[WhiteElo "2433"]
[BlackElo "2466"]
[Annotator "ChessBase"]
[PlyCount "102"]
[EventDate "2019.12.12"]
[EventType "tourn"]
[EventCountry "KAZ"]
[SourceTitle "playchess.com"]
[Source "ChessBase"]
[SourceQuality "1"]
[TimeControl "40/5400+30:1800+30"]

1. e4 {[%emt 0:00:00]} c5 {[%emt 0:00:00]} 2. Nf3 {[%emt 0:01:31]} e6 {[%emt 0:00:00]} 3. d4 {[%emt 0:01:01]} cxd4 {[%emt 0:00:00]} 4. Nxd4 {[%emt 0:00:05]} a6 {[%emt 0:00:03]} 5. Nc3 {[%emt 0:01:50]} d6 6. g4 {[%emt 0:07:20]} b5 {[%emt 0:02:08]} 7. a3 {[%emt 0:01:57]} Bb7 {[%emt 0:00:09]} 8. h4 {[%emt 0:02:24]} Nd7 {[%emt 0:01:05]} 9. g5 {[%emt 0:06:28]} Nc5 {[%emt 0:05:13]} 10. Bg2 {[%emt 0:04:27]} Ne7 {[%emt 0:02:10]} 11. Be3 {[%emt 0:09:07]} e5 {[%emt 0:01:48]} 12. Nde2 {[%emt 0:05:44]} Rc8 {[%emt 0:03:57]} 13. Ng3 {[%emt 0:08:02]} g6 {[%emt 0:00:58]} 14. h5 {[%emt 0:04:54]} Rg8 {[%emt 0:01:12]} 15. hxg6 {[%emt 0:04:02]} hxg6 {[%emt 0:00:05]} 16. Qd2 {[%emt 0:12:51]} Nf5 {[%emt 0:03:27]} 17. exf5 {[%emt 0:07:08]} Bxg2 {[%emt 0:00:06]} 18. Rh2 Bb7 {[%emt 0:02:15]} 19. Nd5 {[%emt 0:05:59]} Bxd5 {[%emt 0:01:17]} 20. Qxd5 {[%emt 0:00:12]} gxf5 {[%emt 0:00:13]} 21. Nxf5 {[%emt 0:03:37]} Qd7 {[%emt 0:00:39]} 22. Ng3 {[%emt 0:01:34]} Qe6 {[%emt 0:02:29]} 23. O-O-O {[%emt 0:02:25]} Be7 {[%emt 0:00:26]} 24. Rh5 {[%emt 0:05:01]} Kd7 {[%emt 0:09:23]} 25. Kb1 {[%emt 0:04:13]} Qxd5 {[%emt 0:00:36]} 26. Rxd5 {[%emt 0:00:06]} Ke6 {[%emt 0:00:08]} 27. Rd1 {[%emt 0:00:23]} d5 {[%emt 0:00:12]} 28. f4 {[%emt 0:00:59]} d4 {[%emt 0:05:32]} 29. Bc1 {[%emt 0:00:26]} Rcd8 {[%emt 0:12:27]} 30. fxe5 {[%emt 0:00:19]} d3 {[%emt 0:00:08]} 31. cxd3 {[%emt 0:00:35]} Rxd3 {[%emt 0:00:43]} 32. Rxd3 {[%emt 0:00:43]} Nxd3 {[%emt 0:00:06]} 33. Bd2 {[%emt 0:00:27]} Nxe5 {[%emt 0:00:32]} 34. Ne4 {[%emt 0:00:38]} Nf3 {[%emt 0:01:21]} 35. Bc1 {[%emt 0:00:25]} Kf5 {[%emt 0:00:43]} 36. Nc3 {[%emt 0:00:11]} Bxg5 {[%emt 0:00:56]} 37. Bxg5 {[%emt 0:00:13]} Rxg5 {[%emt 0:00:40]} 38. Rh8 {[%emt 0:00:21]} Rg2 {[%emt 0:00:47]} 39. Ra8 {[%emt 0:00:54]} Nd2+ {[%emt 0:00:10]} 40. Ka2 {[%emt 0:00:53]} Nc4 {[%emt 0:00:29]} 41. Rxa6 {[%emt 0:02:43]} Rxb2+ {[%emt 0:00:39]} 42. Ka1 {[%emt 0:00:04]} Rb3 {[%emt 0:00:51]} 43. Nb1 {[%emt 0:04:35]} Ke5 {[%emt 0:00:27]} 44. Ka2 {[%emt 0:04:57]} Rb2+ {[%emt 0:00:46]} 45. Ka1 {[%emt 0:00:06]} f5 {[%emt 0:02:07]} 46. Ra8 {[%emt 0:00:41]} f4 {[%emt 0:00:36]} 47. Re8+ {[%emt 0:01:16]} Kd4 {[%emt 0:01:26]} 48. Rd8+ {[%emt 0:00:56]} Ke3 {[%emt 0:00:19]} 49. Nc3 {[%emt 0:02:55]} Rb3 {[%emt 0:00:24]} 50. Re8+ {[%emt 0:04:40]} Kd2 {[%emt 0:01:12]} 51. Nd5 {[%emt 0:03:25]} f3 {[%emt 0:00:39]} 0-1

[Event "KAZ Cup 2019"]
[Site "Almaty"]
[Date "2019.12.12"]
[Round "1.3"]
[White "Makhnev, Denis"]
[Black "Rakhimzhan, Alen"]
[Result "1-0"]
[ECO "E06"]
[WhiteElo "2476"]
[BlackElo "2354"]
[Annotator "ChessBase"]
[PlyCount "115"]
[EventDate "2019.12.12"]
[EventType "tourn"]
[EventCountry "KAZ"]
[SourceTitle "playchess.com"]
[Source "ChessBase"]
[SourceQuality "1"]
[TimeControl "40/5400+30:1800+30"]

1. d4 {[%emt 0:02:22]} Nf6 {[%emt 0:00:00]} 2. c4 {[%emt 0:00:10]} e6 {[%emt 0:00:00]} 3. g3 {[%emt 0:00:07]} d5 {[%emt 0:00:05]} 4. Bg2 {[%emt 0:00:14]} Be7 {[%emt 0:00:09]} 5. Nf3 {[%emt 0:00:07]} O-O {[%emt 0:00:09]} 6. O-O {[%emt 0:00:06]} c6 {[%emt 0:00:07]} 7. Qc2 {[%emt 0:00:16]} b6 {[%emt 0:00:09]} 8. Bf4 {[%emt 0:00:13]} Ba6 {[%emt 0:02:51]} 9. cxd5 {[%emt 0:00:09]} cxd5 {[%emt 0:00:32]} 10. Rc1 Nbd7 {[%emt 0:05:49]} 11. Nc3 {[%emt 0:00:21]} Nh5 {[%emt 0:04:25]} 12. Qa4 {[%emt 0:00:08]} Nxf4 {[%emt 0:03:16]} 13. Qxa6 {[%emt 0:00:07]} Nxg2 {[%emt 0:00:18]} 14. Kxg2 Qc8 {[%emt 0:58:17]} 15. Qxc8 {[%emt 0:00:17]} Rfxc8 {[%emt 0:04:36]} 16. Nb5 {[%emt 0:00:09]} Bf8 {[%emt 0:01:30]} 17. Nc7 {[%emt 0:20:49]} Rab8 {[%emt 0:00:20]} 18. Rc2 {[%emt 0:13:44]} Nc5 {[%emt 0:10:48]} 19. Nxd5 {[%emt 0:01:41]} exd5 {[%emt 0:01:14]} 20. dxc5 {[%emt 0:00:07]} bxc5 {[%emt 0:00:10]} 21. Rd1 {[%emt 0:00:29]} d4 {[%emt 0:00:49]} 22. Ne5 {[%emt 0:01:35]} Re8 {[%emt 0:02:00]} 23. Nd3 {[%emt 0:01:34]} g6 {[%emt 0:01:23]} 24. Kf1 {[%emt 0:01:03]} Re6 {[%emt 0:00:53]} 25. b3 {[%emt 0:02:42]} Ra6 {[%emt 0:00:48]} 26. Rdd2 {[%emt 0:00:50]} Rb5 {[%emt 0:00:45]} 27. Ke1 {[%emt 0:08:25]} f6 {[%emt 0:01:04]} 28. Kd1 {[%emt 0:06:02]} Kf7 {[%emt 0:00:33]} 29. Rc4 {[%emt 0:04:21]} Rba5 {[%emt 0:00:27]} 30. a4 {[%emt 0:00:20]} Rb6 {[%emt 0:00:22]} 31. Kc2 {[%emt 0:00:09]} Re6 {[%emt 0:00:47]} 32. Kb2 {[%emt 0:01:16]} Rb6 {[%emt 0:00:49]} 33. Rdc2 {[%emt 0:00:28]} Re6 {[%emt 0:00:16]} 34. Kc1 {[%emt 0:01:42]} h5 {[%emt 0:00:41]} 35. Kd2 {[%emt 0:02:08]} Rb6 {[%emt 0:00:31]} 36. Nxc5 {[%emt 0:00:12]} Bxc5 {[%emt 0:00:17]} 37. Rxc5 {[%emt 0:00:07]} Rxc5 {[%emt 0:00:16]} 38. Rxc5 {[%emt 0:00:07]} Rxb3 {[%emt 0:00:07]} 39. Rc7+ {[%emt 0:06:25]} Ke6 {[%emt 0:00:08]} 40. Rxa7 {[%emt 0:00:04]} Ra3 {[%emt 0:01:31]} 41. a5 {[%emt 0:38:09]} Kd5 {[%emt 0:24:31]} 42. a6 {[%emt 0:00:00]} Ra2+ {[%emt 0:00:41]} 43. Kd3 {[%emt 0:00:00]} Ra3+ {[%emt 0:00:07]} 44. Kc2 {[%emt 0:00:00]} Ra2+ {[%emt 0:00:13]} 45. Kb3 {[%emt 0:00:00]} Rxe2 {[%emt 0:01:01]} 46. Rd7+ {[%emt 0:00:00]} Kc5 {[%emt 0:03:36]} 47. a7 {[%emt 0:00:00]} Re8 {[%emt 0:00:42]} 48. Rg7 {[%emt 0:00:00]} g5 {[%emt 0:03:23]} 49. Rb7 {[%emt 0:00:00]} Ra8 {[%emt 0:00:16]} 50. Kc2 {[%emt 0:00:00]} Kc6 {[%emt 0:00:31]} 51. Rf7 {[%emt 0:00:00]} Kd5 {[%emt 0:00:39]} 52. Kd3 {[%emt 0:00:00]} g4 {[%emt 0:00:35]} 53. Rh7 {[%emt 0:00:00]} f5 {[%emt 0:00:19]} 54. Rf7 Ke6 {[%emt 0:00:40]} 55. Rb7 {[%emt 0:00:00]} f4 {[%emt 0:00:31]} 56. Kxd4 {[%emt 0:00:00]} h4 {[%emt 0:00:23]} 57. gxh4 {[%emt 0:00:00]} f3 {[%emt 0:00:23]} 58. Ke4 {Kd5+} 1-0

[Event "KAZ Cup 2019"]
[Site "Almaty"]
[Date "2019.12.14"]
[Round "4.3"]
[White "Babujian, Levon"]
[Black "Igambergenov, Alibek"]
[Result "1-0"]
[ECO "C11"]
[WhiteElo "2466"]
[BlackElo "2410"]
[Annotator "RC"]
[PlyCount "75"]
[EventDate "2019.12.12"]
[EventType "tourn"]
[EventCountry "KAZ"]
[SourceTitle "playchess.com"]
[Source "ChessBase"]
[SourceQuality "1"]
[TimeControl "40/5400+30:1800+30"]

1. d4 {[%emt 0:00:00]} e6 {[%emt 0:02:56]} 2. e4 {[%emt 0:00:13]} d5 {[%emt 0:00:06]} 3. Nc3 {[%emt 0:00:03]} Nf6 {[%emt 0:00:07]} 4. Bg5 {[%emt 0:00:15]} dxe4 {[%emt 0:03:25]} 5. Nxe4 {[%emt 0:00:08]} Be7 {[%emt 0:00:03]} 6. Bxf6 {[%emt 0:00:07]} gxf6 {[%emt 0:00:04]} 7. Nf3 {[%emt 0:00:29]} Bd7 {[%emt 0:06:06]} 8. d5 {[%emt 0:03:52]} f5 {[%emt 0:19:00]} 9. Nc3 {[%emt 0:01:04]} Bf6 {[%emt 0:00:46]} 10. Bc4 {[%emt 0:07:50]} e5 {[%emt 0:10:29]} 11. O-O {[%emt 0:00:52]} O-O {[%emt 0:00:39]} 12. a4 {[%emt 0:02:10]} Qe7 {[%emt 0:07:13]} 13. Ra3 {[%emt 0:01:03]} Na6 {[%emt 0:12:30]} 14. Re1 {[%emt 0:03:57]} Rae8 {[%emt 0:12:30]} 15. Nb5 {[%emt 0:02:19]} Qc5 {[%emt 0:00:32]} 16. Nd2 {[%emt 0:00:46]} Bg7 {[%emt 0:10:52]} 17. Qh5 {[%emt 0:04:53]} f4 {[%emt 0:00:06]} 18. d6 {[%emt 0:11:52]} c6 {[%emt 0:05:33]} 19. Rc3 {[%emt 0:02:16]} cxb5 {[%emt 0:00:10]} 20. Bd3 {[%emt 0:00:43]} f5 {[%emt 0:04:46]} 21. Rxc5 {[%emt 0:00:18]} Nxc5 {[%emt 0:00:02]} 22. Bxb5 {[%emt 0:00:16]} Bxb5 {[%emt 0:00:06]} 23. axb5 {[%emt 0:00:05]} e4 {[%emt 0:00:07]} 24. Nc4 {[%emt 0:01:20]} Re6 {[%emt 0:01:23]} 25. Qd1 {[%emt 0:00:40]} Rg6 {[%emt 0:00:53]} 26. Qd5+ {[%emt 0:00:27]} Ne6 {[%emt 0:00:05]} 27. d7 {[%emt 0:02:45]} f3 {[%emt 0:02:09]} 28. g3 {[%emt 0:00:04]} h5 {[%emt 0:00:18]} 29. Nd6 {[%emt 0:00:33]} Kh7 {[%emt 0:00:59]} 30. Nxf5 {[%emt 0:00:21]} Nf4 {[%emt 0:00:24]} 31. Qxe4 {[%emt 0:00:35]} Re6 {[%emt 0:00:32]} 32. Qxe6 {[%emt 0:00:20]} Nxe6 {[%emt 0:00:04]} 33. Rxe6 {[%emt 0:00:08]} Rd8 {[%emt 0:00:34]} 34. Re7 {[%emt 0:00:15]} Kg6 {[%emt 0:00:03]} 35. Nxg7 {[%emt 0:00:59]} Kf6 {[%emt 0:00:03]} 36. Re8 {[%emt 0:02:19]} Rxd7 {[%emt 0:00:04]} 37. Nxh5+ {[%emt 0:00:06]} Kg5 {[%emt 0:00:08]} 38. Re5+ {[%emt 0:00:18]} 1-0

[Event "KAZ Cup 2019"]
[Site "Almaty"]
[Date "2019.12.14"]
[Round "4.5"]
[White "Urazayev, Arystanbek"]
[Black "Makhnev, Denis"]
[Result "1/2-1/2"]
[ECO "C77"]
[WhiteElo "2433"]
[BlackElo "2476"]
[Annotator "RC"]
[PlyCount "63"]
[EventDate "2019.12.12"]
[EventType "tourn"]
[EventCountry "KAZ"]
[SourceTitle "playchess.com"]
[Source "ChessBase"]
[SourceQuality "1"]
[TimeControl "40/5400+30:1800+30"]

1. e4 {[%emt 0:02:09]} e5 {[%emt 0:00:00]} 2. Nf3 {[%emt 0:00:38]} Nc6 {[%emt 0:00:00]} 3. Bb5 {[%emt 0:00:47]} a6 {[%emt 0:00:01]} 4. Ba4 {[%emt 0:00:04]} Nf6 {[%emt 0:00:11]} 5. d3 {[%emt 0:00:55]} b5 {[%emt 0:00:07]} 6. Bb3 {[%emt 0:00:04]} Bc5 {[%emt 0:00:08]} 7. Nc3 {[%emt 0:00:44]} d6 {[%emt 0:00:09]} 8. Nd5 {[%emt 0:00:16]} h6 {[%emt 0:00:11]} 9. c3 {[%emt 0:00:08]} Rb8 {[%emt 0:00:12]} 10. O-O {[%emt 0:01:53]} O-O {[%emt 0:00:19]} 11. d4 {[%emt 0:00:06]} Ba7 {[%emt 0:00:09]} 12. Be3 {[%emt 0:00:51]} Nxd5 {[%emt 0:06:31]} 13. Bxd5 {[%emt 0:04:47]} Ne7 {[%emt 0:00:56]} 14. dxe5 {[%emt 0:02:26]} Bxe3 {[%emt 0:00:07]} 15. fxe3 {[%emt 0:00:03]} dxe5 {[%emt 0:00:08]} 16. Nxe5 {[%emt 0:11:35]} Nxd5 {[%emt 0:00:08]} 17. Qxd5 {[%emt 0:12:43]} Bb7 {[%emt 0:00:21]} 18. Qc5 {[%emt 0:19:56]} Bxe4 {[%emt 0:11:17]} 19. Rf4 {[%emt 0:03:07]} f5 {[%emt 0:02:40]} 20. Nc6 {[%emt 0:01:35]} Bxc6 {[%emt 0:01:53]} 21. Qxc6 {[%emt 0:00:04]} Qd2 {[%emt 0:02:47]} 22. Rf2 {[%emt 0:06:46]} Qxe3 {[%emt 0:00:14]} 23. Qxc7 {[%emt 0:00:20]} f4 {[%emt 0:02:38]} 24. Qc6 {[%emt 0:05:07]} Rbd8 {[%emt 0:04:43]} 25. Qf3 {[%emt 0:01:03]} Qc5 {[%emt 0:00:18]} 26. Kh1 {[%emt 0:02:34]} Qc4 {[%emt 0:03:23]} 27. b3 {[%emt 0:01:58]} Qe6 {[%emt 0:02:41]} 28. h3 {[%emt 0:01:05]} Qg6 {[%emt 0:00:53]} 29. Rd1 {[%emt 0:03:49]} Rxd1+ {[%emt 0:05:03]} 30. Qxd1 {[%emt 0:00:05]} Rf6 {[%emt 0:00:08]} 31. Qd4 {[%emt 0:04:39]} Qf5 {[%emt 0:01:15]} 32. Kh2 {[%emt 0:01:33]} 1/2-1/2

[Event "KAZ Cup 2019"]
[Site "Almaty"]
[Date "2019.12.16"]
[Round "6.1"]
[White "Kostenko, Petr"]
[Black "Rakhimzhan, Alen"]
[Result "1/2-1/2"]
[ECO "C50"]
[WhiteElo "2467"]
[BlackElo "2354"]
[Annotator "ChessBase"]
[PlyCount "197"]
[EventDate "2019.12.12"]
[EventType "tourn"]
[EventCountry "KAZ"]
[SourceTitle "playchess.com"]
[Source "ChessBase"]
[SourceQuality "1"]
[TimeControl "40/5400+30:1800+30"]

1. e4 e5 {[%emt 0:01:41]} 2. Nf3 {[%emt 0:01:44]} Nc6 {[%emt 0:00:08]} 3. Bc4 {[%emt 0:00:04]} Bc5 {[%emt 0:00:39]} 4. d3 {[%emt 0:00:06]} Nf6 {[%emt 0:00:08]} 5. Nbd2 {[%emt 0:00:22]} d6 {[%emt 0:00:40]} 6. a4 {[%emt 0:01:02]} a5 {[%emt 0:00:28]} 7. c3 Ba7 {[%emt 0:00:34]} 8. h3 {[%emt 0:02:24]} h6 {[%emt 0:00:24]} 9. Nf1 {[%emt 0:00:07]} O-O {[%emt 0:00:21]} 10. Ng3 {[%emt 0:01:03]} Ne7 11. Nh2 {[%emt 0:01:57]} d5 {[%emt 0:06:31]} 12. exd5 {[%emt 0:00:05]} Nexd5 {[%emt 0:00:14]} 13. Ng4 Nf4 {[%emt 0:12:37]} 14. Qf3 {[%emt 0:01:53]} Nxg4 15. hxg4 {[%emt 0:02:14]} Qg5 {[%emt 0:06:14]} 16. Nf5 {[%emt 0:00:03]} Bxf5 {[%emt 0:08:25]} 17. gxf5 Nxg2+ {[%emt 0:10:05]} 18. Kf1 {[%emt 0:01:02]} Nf4 {[%emt 0:02:01]} 19. d4 {[%emt 0:01:27]} Rad8 {[%emt 0:02:04]} 20. Qxb7 {[%emt 0:08:08]} Bxd4 {[%emt 0:10:44]} 21. cxd4 {[%emt 0:32:32]} Rxd4 22. Be2 {[%emt 0:15:35]} Qxf5 {[%emt 0:02:09]} 23. Qf3 {[%emt 0:00:36]} Rb8 24. Rh2 {[%emt 0:20:05]} Re4 {[%emt 0:15:44]} 25. Bb5 Qg6 {[%emt 0:12:17]} 26. b3 {[%emt 0:02:08]} Rxb5 {[%emt 0:03:46]} 27. Bxf4 {[%emt 0:00:05]} Rb6 {[%emt 0:01:05]} 28. Bg3 {[%emt 0:06:39]} Rf6 {[%emt 0:00:33]} 29. Qc3 {[%emt 0:00:18]} Rg4 {[%emt 0:00:44]} 30. Rh3 e4 {[%emt 0:02:13]} 31. Re1 {[%emt 0:01:35]} Rf3 {[%emt 0:01:40]} 32. Qxc7 {[%emt 0:01:28]} Kh7 {[%emt 0:00:33]} 33. Re3 {[%emt 0:00:48]} f5 {[%emt 0:00:39]} 34. Bh2 {[%emt 0:00:43]} Rxh3 {[%emt 0:00:58]} 35. Rxh3 {[%emt 0:00:04]} f4 {[%emt 0:00:24]} 36. Qxa5 {[%emt 0:00:51]} e3 {[%emt 0:00:37]} 37. Qe1 {[%emt 0:00:36]} exf2 {[%emt 0:00:32]} 38. Qxf2 {[%emt 0:00:22]} Qb1+ {[%emt 0:00:26]} 39. Qe1 {[%emt 0:00:05]} Qc2 {[%emt 0:00:38]} 40. Qe2 {[%emt 0:00:09]} Qc1+ {[%emt 0:00:20]} 41. Kf2 {[%emt 0:30:22]} Qc5+ {[%emt 0:30:21]} 42. Ke1 {[%emt 0:00:59]} Rg5 {[%emt 0:00:42]} 43. Qd3+ {[%emt 0:00:38]} Kh8 {[%emt 0:00:15]} 44. Qd8+ {[%emt 0:00:40]} Kh7 {[%emt 0:00:02]} 45. Qd3+ {[%emt 0:00:05]} Kh8 {[%emt 0:00:04]} 46. Qc3 Qd5 {[%emt 0:00:00]} 47. Rf3 {[%emt 0:00:00]} Re5+ {[%emt 0:00:00]} 48. Kf2 {[%emt 0:00:00]} g5 49. Bxf4 {[%emt 0:00:00]} gxf4 {[%emt 0:00:00]} 50. Rxf4 {[%emt 0:00:00]} Kh7 {[%emt 0:00:00]} 51. Qc2+ {[%emt 0:00:00]} Kg7 {[%emt 0:00:00]} 52. Rg4+ {[%emt 0:00:00]} Rg5 {[%emt 0:00:02]} 53. Rxg5+ {[%emt 0:00:07]} hxg5 54. Qc4 Qd2+ {[%emt 0:00:56]} 55. Kg3 {[%emt 0:01:26]} Kg6 56. Qe6+ {[%emt 0:01:30]} Kh5 {[%emt 0:01:25]} 57. Qe4 {[%emt 0:00:44]} Kh6 {[%emt 0:01:09]} 58. Qe6+ {[%emt 0:00:50]} Kh5 {[%emt 0:00:31]} 59. Qf5 {[%emt 0:01:22]} Kh6 60. Qf8+ Kg6 {[%emt 0:01:17]} 61. Qe8+ {[%emt 0:00:41]} Kh6 {[%emt 0:00:15]} 62. Qc6+ {[%emt 0:00:30]} Kh5 63. Qh1+ {[%emt 0:01:05]} Kg6 {[%emt 0:00:20]} 64. Qc6+ {[%emt 0:00:09]} Kh5 {[%emt 0:00:07]} 65. Qf3+ {[%emt 0:00:21]} Kh6 {[%emt 0:00:15]} 66. Qh1+ {[%emt 0:00:26]} Kg6 {[%emt 0:00:09]} 67. Qe4+ Kh6 {[%emt 0:01:36]} 68. b4 {[%emt 0:00:34]} Qc3+ {[%emt 0:00:40]} 69. Kg4 {[%emt 0:00:36]} Qc8+ {[%emt 0:00:08]} 70. Kf3 {[%emt 0:00:20]} Qc3+ {[%emt 0:00:11]} 71. Kg4 {[%emt 0:00:28]} Qc8+ {[%emt 0:00:05]} 72. Kf3 {[%emt 0:00:19]} Qc3+ {[%emt 0:00:10]} 73. Ke2 {[%emt 0:00:20]} Qb2+ {[%emt 0:00:09]} 74. Ke3 {[%emt 0:00:42]} Qb3+ {[%emt 0:00:43]} 75. Kd2 Qb2+ {[%emt 0:00:24]} 76. Kd1 {[%emt 0:00:16]} Qa1+ {[%emt 0:00:26]} 77. Kc2 {[%emt 0:00:12]} Qxa4+ 78. Kc3 {[%emt 0:00:38]} Kh5 {[%emt 0:01:09]} 79. Qh1+ {[%emt 0:00:12]} Kg4 {[%emt 0:00:22]} 80. Qg2+ {[%emt 0:00:05]} Kh4 {[%emt 0:01:35]} 81. Qh2+ {[%emt 0:00:03]} Kg4 {[%emt 0:00:06]} 82. Qe2+ {[%emt 0:00:06]} Kh4 {[%emt 0:00:16]} 83. b5 {[%emt 0:00:19]} g4 {[%emt 0:01:55]} 84. Qe7+ {[%emt 0:00:42]} Kh3 85. Qh7+ {[%emt 0:01:17]} Kg2 {[%emt 0:02:06]} 86. Qb7+ {[%emt 0:00:24]} Kh3 {[%emt 0:01:05]} 87. b6 {[%emt 0:00:16]} Qa1+ {[%emt 0:01:52]} 88. Kc4 {[%emt 0:00:30]} Qa2+ {[%emt 0:00:16]} 89. Kc5 {[%emt 0:00:10]} Qf2+ {[%emt 0:00:08]} 90. Kd6 {[%emt 0:00:11]} Qf6+ {[%emt 0:00:16]} 91. Kc7 {[%emt 0:00:08]} Qe7+ {[%emt 0:00:38]} 92. Kb8 {[%emt 0:00:03]} Qxb7+ {[%emt 0:00:10]} 93. Kxb7 {[%emt 0:00:03]} g3 94. Ka8 {[%emt 0:00:07]} g2 {[%emt 0:00:09]} 95. b7 {[%emt 0:00:03]} g1=Q {[%emt 0:00:06]} 96. b8=Q {[%emt 0:00:06]} Qa1+ {[%emt 0:00:02]} 97. Kb7 {[%emt 0:00:03]} Qb2+ {[%emt 0:00:03]} 98. Kc8 {[%emt 0:00:05]} Qxb8+ {[%emt 0:00:03]} 99. Kxb8 {[%emt 0:00:07]} 1/2-1/2

[Event "KAZ Cup 2019"]
[Site "Almaty"]
[Date "2019.12.16"]
[Round "6.2"]
[White "Babujian, Levon"]
[Black "Utegaliyev, Azamat"]
[Result "1/2-1/2"]
[ECO "A50"]
[WhiteElo "2466"]
[BlackElo "2502"]
[Annotator "ChessBase"]
[PlyCount "84"]
[EventDate "2019.12.12"]
[EventType "tourn"]
[EventCountry "KAZ"]
[SourceTitle "playchess.com"]
[Source "ChessBase"]
[SourceQuality "1"]
[TimeControl "40/5400+30:1800+30"]

1. d4 {[%emt 0:00:00]} Nf6 {[%emt 0:08:17]} 2. c4 {[%emt 0:00:00]} c6 {[%emt 0:05:29]} 3. Nc3 {[%emt 0:00:16]} d5 {[%emt 0:02:41]} 4. cxd5 {[%emt 0:00:07]} cxd5 {[%emt 0:00:03]} 5. Bf4 {[%emt 0:00:06]} Nc6 {[%emt 0:00:18]} 6. e3 {[%emt 0:00:06]} a6 {[%emt 0:00:35]} 7. Bd3 {[%emt 0:00:23]} Bg4 {[%emt 0:00:15]} 8. Nge2 {[%emt 0:01:11]} e6 {[%emt 0:03:30]} 9. O-O {[%emt 0:00:07]} Bd6 {[%emt 0:02:25]} 10. f3 {[%emt 0:00:52]} Bh5 {[%emt 0:00:17]} 11. Rc1 {[%emt 0:00:04]} Bxf4 {[%emt 0:04:01]} 12. Nxf4 {[%emt 0:00:08]} Bg6 {[%emt 0:00:03]} 13. Na4 {[%emt 0:01:12]} Nd7 {[%emt 0:00:38]} 14. Qb3 {[%emt 0:04:54]} Ra7 {[%emt 0:00:54]} 15. Nc5 {[%emt 0:03:44]} Nxc5 {[%emt 0:05:45]} 16. Rxc5 {[%emt 0:00:34]} O-O {[%emt 0:00:12]} 17. Rfc1 {[%emt 0:04:45]} Bxd3 {[%emt 0:02:09]} 18. Nxd3 {[%emt 0:03:26]} h5 {[%emt 0:00:27]} 19. Ne5 {[%emt 0:03:08]} Nxe5 {[%emt 0:02:13]} 20. dxe5 {[%emt 0:00:06]} b5 {[%emt 0:05:26]} 21. Rc6 {[%emt 0:01:10]} Rd7 {[%emt 0:09:28]} 22. Rxa6 {[%emt 0:09:26]} d4 {[%emt 0:00:18]} 23. exd4 {[%emt 0:09:20]} Rxd4 {[%emt 0:00:08]} 24. Rac6 {[%emt 0:02:31]} Rd2 {[%emt 0:08:47]} 25. Qe3 {[%emt 0:17:43]} Rxb2 {[%emt 0:01:55]} 26. a3 {[%emt 0:00:26]} Qd5 {[%emt 0:00:06]} 27. Rc8 {[%emt 0:09:04]} Rxc8 {[%emt 0:01:46]} 28. Rxc8+ {[%emt 0:00:05]} Kh7 {[%emt 0:00:05]} 29. h4 Qd1+ {[%emt 0:31:49]} 30. Kh2 {[%emt 0:01:27]} Qf1 {[%emt 0:01:43]} 31. Qe4+ {[%emt 0:01:16]} g6 {[%emt 0:00:06]} 32. Rc2 {[%emt 0:00:08]} Rxc2 {[%emt 0:01:21]} 33. Qxc2 {[%emt 0:00:05]} Qc4 {[%emt 0:00:46]} 34. Qe4 {[%emt 0:00:48]} Qc5 {[%emt 0:01:29]} 35. Qe2 {[%emt 0:00:43]} Qc4 {[%emt 0:01:05]} 36. Qe4 {[%emt 0:00:38]} Kg7 {[%emt 0:00:53]} 37. Kg3 {[%emt 0:00:58]} Qc3 {[%emt 0:00:24]} 38. Qe2 {[%emt 0:00:09]} Qc5 {[%emt 0:00:15]} 39. Kf4 {[%emt 0:01:22]} Qd4+ {[%emt 0:00:46]} 40. Kg3 {[%emt 0:00:13]} Qc5 {[%emt 0:00:17]} 41. Kf4 {[%emt 0:30:10]} Qd4+ {[%emt 0:30:44]} 42. Kg3 {[%emt 0:01:04]} Qc5 {[%emt 0:00:32]} 1/2-1/2

[Event "KAZ Cup 2019"]
[Site "Almaty"]
[Date "2019.12.16"]
[Round "6.3"]
[White "Khegay, Dmitriy"]
[Black "Stupak, Kirill"]
[Result "1-0"]
[ECO "C02"]
[WhiteElo "2504"]
[BlackElo "2529"]
[Annotator "ChessBase"]
[PlyCount "127"]
[EventDate "2019.12.12"]
[EventType "tourn"]
[EventCountry "KAZ"]
[SourceTitle "playchess.com"]
[Source "ChessBase"]
[SourceQuality "1"]
[TimeControl "40/5400+30:1800+30"]

1. e4 {[%emt 0:00:37]} e6 {[%emt 0:00:00]} 2. d4 {[%emt 0:00:02]} d5 {[%emt 0:00:00]} 3. e5 {[%emt 0:00:02]} c5 {[%emt 0:00:00]} 4. c3 {[%emt 0:00:04]} Qb6 {[%emt 0:00:00]} 5. Nf3 {[%emt 0:00:06]} Nc6 {[%emt 0:00:21]} 6. a3 {[%emt 0:00:09]} c4 {[%emt 0:01:54]} 7. Nbd2 {[%emt 0:00:06]} Na5 {[%emt 0:00:18]} 8. Rb1 {[%emt 0:00:29]} Bd7 {[%emt 0:00:13]} 9. Be2 {[%emt 0:00:16]} Ne7 {[%emt 0:00:54]} 10. h4 {[%emt 0:01:41]} Qc7 {[%emt 0:01:11]} 11. h5 {[%emt 0:00:38]} h6 {[%emt 0:01:06]} 12. Nf1 {[%emt 0:00:05]} Nc8 {[%emt 0:00:08]} 13. Bf4 {[%emt 0:00:09]} Nb6 {[%emt 0:00:04]} 14. Qd2 {[%emt 0:00:54]} Ba4 {[%emt 0:00:41]} 15. g4 O-O-O {[%emt 0:12:34]} 16. Ng3 {[%emt 0:07:58]} Be7 {[%emt 0:03:32]} 17. Kf1 {[%emt 0:00:03]} Kb8 {[%emt 0:09:04]} 18. Kg2 {[%emt 0:00:08]} Ka8 {[%emt 0:00:41]} 19. g5 {[%emt 0:03:32]} hxg5 {[%emt 0:00:23]} 20. Nxg5 {[%emt 0:00:31]} Rdf8 {[%emt 0:00:35]} 21. Nf3 {[%emt 0:00:08]} Rfg8 {[%emt 0:05:24]} 22. h6 {[%emt 0:14:04]} gxh6 {[%emt 0:01:21]} 23. Bxh6 {[%emt 0:00:04]} Qd8 {[%emt 0:11:00]} 24. Rh3 {[%emt 0:02:59]} f6 {[%emt 0:02:30]} 25. Rbh1 {[%emt 0:00:14]} Nc6 {[%emt 0:01:24]} 26. Bf4 {[%emt 0:10:00]} Rxh3 {[%emt 0:07:35]} 27. Rxh3 fxe5 {[%emt 0:00:05]} 28. Nxe5 {[%emt 0:00:29]} Nxe5 {[%emt 0:00:21]} 29. Bxe5 Bg5 {[%emt 0:17:12]} 30. Bf4 {[%emt 0:02:08]} Bxf4 {[%emt 0:08:16]} 31. Qxf4 {[%emt 0:00:09]} Bd7 {[%emt 0:01:00]} 32. Rh7 {[%emt 0:01:26]} Rf8 {[%emt 0:02:21]} 33. Qh6 {[%emt 0:02:27]} a5 {[%emt 0:03:44]} 34. Bg4 {[%emt 0:02:35]} Bc8 {[%emt 0:06:36]} 35. Bd1 {[%emt 0:05:31]} Rf6 {[%emt 0:01:11]} 36. Qg7 {[%emt 0:02:44]} Qf8 {[%emt 0:01:23]} 37. f3 {[%emt 0:06:36]} Qxg7 {[%emt 0:01:33]} 38. Rxg7 {[%emt 0:00:06]} Bd7 {[%emt 0:00:59]} 39. Nh5 {[%emt 0:02:51]} Rh6 {[%emt 0:01:10]} 40. Nf4 {[%emt 0:03:06]} Kb8 {[%emt 0:00:40]} 41. Bc2 {[%emt 0:32:04]} Kc8 {[%emt 0:04:16]} 42. Ng6 {[%emt 0:00:00]} Ba4 {[%emt 0:02:31]} 43. Bb1 {[%emt 0:00:00]} Bc6 {[%emt 0:14:54]} 44. Re7 {[%emt 0:00:00]} Bd7 {[%emt 0:01:33]} 45. Ne5 {[%emt 0:00:00]} Rf6 {[%emt 0:04:17]} 46. Kg3 {[%emt 0:00:00]} Rh6 {[%emt 0:01:30]} 47. Bc2 {[%emt 0:00:00]} Rf6 {[%emt 0:02:49]} 48. f4 {[%emt 0:00:00]} Bc6 {[%emt 0:00:57]} 49. Bd1 {[%emt 0:11:30]} Bd7 {[%emt 0:01:23]} 50. Bg4 {[%emt 0:02:05]} Kd8 {[%emt 0:00:01]} 51. Nxd7 {[%emt 0:02:28]} Nxd7 {[%emt 0:01:07]} 52. Rxe6 {[%emt 0:00:05]} Rxe6 {[%emt 0:00:12]} 53. Bxe6 {[%emt 0:00:05]} Nb6 {[%emt 0:00:44]} 54. f5 {[%emt 0:01:02]} Ke7 {[%emt 0:00:10]} 55. Kg4 {[%emt 0:01:17]} Kf6 {[%emt 0:00:47]} 56. Kf4 {[%emt 0:00:11]} Na4 {[%emt 0:00:41]} 57. Bxd5 {[%emt 0:00:07]} b5 {[%emt 0:00:36]} 58. Bc6 {[%emt 0:00:30]} Nxb2 {[%emt 0:00:09]} 59. Bxb5 {[%emt 0:00:05]} Nd1 {[%emt 0:00:43]} 60. Bxc4 {[%emt 0:00:05]} Nxc3 {[%emt 0:00:01]} 61. d5 {[%emt 0:01:04]} Nb1 {[%emt 0:00:20]} 62. d6 {[%emt 0:00:27]} Nxa3 {[%emt 0:00:21]} 63. Bd3 {[%emt 0:00:18]} a4 {[%emt 0:00:14]} 64. Ke4 {[%emt 0:00:19]} 1-0